[Event "*** Titled Tuesday Blitz"]
[Site "Chess.com"]
[Date "2021.02.16"]
[Round "4"]
[White "Chesswizard_2007"]
[Black "eldur16"]
[Result "1-0"]
[WhiteElo "2717"]
[BlackElo "2515"]
[TimeControl "180+1"]
[EndTime "10:42:18 PST"]
[Termination "Chesswizard_2007 won on time"]

1. Nf3 {[%clk 0:03:00.9]} 1... d6 {[%clk 0:02:59.4]} 2. e4 {[%clk 0:02:59.9]}
2... Nf6 {[%clk 0:02:56.4]} 3. Nc3 {[%clk 0:03:00.5]} 3... e5 {[%clk 0:02:55.3]}
4. Bc4 {[%clk 0:02:56.1]} 4... Be7 {[%clk 0:02:54.7]} 5. h3 {[%clk 0:02:55]}
5... O-O {[%clk 0:02:54.1]} 6. d3 {[%clk 0:02:55.4]} 6... c6 {[%clk 0:02:53.1]}
7. a4 {[%clk 0:02:55.1]} 7... a5 {[%clk 0:02:47.6]} 8. Bg5 {[%clk 0:02:54.2]}
8... Nbd7 {[%clk 0:02:46.1]} 9. Qb1 {[%clk 0:02:52.8]} 9... h6 {[%clk
0:02:41.7]} 10. Bh4 {[%clk 0:02:52]} 10... Nh5 {[%clk 0:02:40.7]} 11. Bxe7
{[%clk 0:02:51.2]} 11... Qxe7 {[%clk 0:02:40.7]} 12. Qa2 {[%clk 0:02:50.6]}
12... Nf4 {[%clk 0:02:39.5]} 13. g3 {[%clk 0:02:49.8]} 13... Ng6 {[%clk
0:02:35.6]} 14. Kf1 {[%clk 0:02:48.2]} 14... Nb6 {[%clk 0:02:34.1]} 15. Bb3
{[%clk 0:02:47.6]} 15... Kh7 {[%clk 0:02:31.7]} 16. Kg2 {[%clk 0:02:47.1]} 16...
f5 {[%clk 0:02:30.6]} 17. h4 {[%clk 0:02:39.4]} 17... fxe4 {[%clk 0:02:18.2]}
18. dxe4 {[%clk 0:02:34.9]} 18... Qf6 {[%clk 0:02:12.5]} 19. Ng5+ {[%clk
0:02:31.9]} 19... Kh8 {[%clk 0:02:11.9]} 20. Nf7+ {[%clk 0:02:27.4]} 20... Kh7
{[%clk 0:02:11.7]} 21. Ng5+ {[%clk 0:02:27.6]} 21... Kh8 {[%clk 0:02:11.4]} 22.
Raf1 {[%clk 0:02:25.2]} 22... Bd7 {[%clk 0:01:58.1]} 23. Nf7+ {[%clk 0:02:22.3]}
23... Kh7 {[%clk 0:01:57.3]} 24. Ng5+ {[%clk 0:02:22.9]} 24... Kh8 {[%clk
0:01:56.5]} 25. f3 {[%clk 0:02:13]} 25... Ne7 {[%clk 0:01:44.4]} 26. Nf7+ {[%clk
0:02:11]} 26... Kh7 {[%clk 0:01:43.5]} 27. Ng5+ {[%clk 0:02:11.5]} 27... Kh8
{[%clk 0:01:43.1]} 28. Rd1 {[%clk 0:02:09.9]} 28... d5 {[%clk 0:01:37.3]} 29.
exd5 {[%clk 0:02:06.6]} 29... cxd5 {[%clk 0:01:37.2]} 30. Nxd5 {[%clk
0:02:06.5]} 30... Nexd5 {[%clk 0:01:36.8]} 31. Bxd5 {[%clk 0:02:06.5]} 31...
Nxd5 {[%clk 0:01:33.7]} 32. Qxd5 {[%clk 0:02:06.2]} 32... Bc6 {[%clk 0:01:33]}
33. Qd3 {[%clk 0:02:06.7]} 33... Qf5 {[%clk 0:01:16.1]} 34. Qb3 {[%clk
0:01:37.7]} 34... e4 {[%clk 0:01:00.5]} 35. fxe4 {[%clk 0:01:29.5]} 35... Qf2+
{[%clk 0:00:53]} 36. Kh3 {[%clk 0:01:29.3]} 36... hxg5 {[%clk 0:00:52.3]} 37.
hxg5 {[%clk 0:01:21.9]} 37... g6 {[%clk 0:00:33.5]} 38. Kg4+ {[%clk 0:01:18.2]}
38... Kg7 {[%clk 0:00:30.8]} 39. Qc3+ {[%clk 0:01:18.8]} 39... Kf7 {[%clk
0:00:20.8]} 40. Rhf1 {[%clk 0:01:18]} 40... Kg8 {[%clk 0:00:11.9]} 41. Rxf2
{[%clk 0:01:12.3]} 41... Rxf2 {[%clk 0:00:11.7]} 42. Qc4+ {[%clk 0:01:06.9]}
42... Rf7 {[%clk 0:00:08.1]} 43. Rf1 {[%clk 0:01:02.4]} 43... Bd7+ {[%clk
0:00:05.4]} 44. Kh4 {[%clk 0:00:59.6]} 44... Rf8 {[%clk 0:00:05.2]} 45. g4
{[%clk 0:00:56.1]} 45... Kg7 {[%clk 0:00:05.2]} 46. Rxf7+ {[%clk 0:00:56.6]}
46... Rxf7 {[%clk 0:00:04.9]} 47. Qd4+ {[%clk 0:00:57.3]} 47... Kh7 {[%clk
0:00:04.8]} 48. Kg3 {[%clk 0:00:55.4]} 48... Bc6 {[%clk 0:00:04]} 49. Qe5 {[%clk
0:00:45.3]} 49... Rd7 {[%clk 0:00:02.9]} 50. Qxa5 {[%clk 0:00:44.6]} 50... Rd1
{[%clk 0:00:01.5]} 51. Qc7+ {[%clk 0:00:42.7]} 51... Kg8 {[%clk 0:00:01.7]} 52.
b4 {[%clk 0:00:39.4]} 1-0

[Event "*** Titled Tuesday Blitz"]
[Site "Chess.com"]
[Date "2021.02.16"]
[Round "4"]
[White "queen_iryna"]
[Black "noamapplesauce"]
[Result "0-1"]
[WhiteElo "2382"]
[BlackElo "2137"]
[TimeControl "180+1"]
[EndTime "10:42:19 PST"]
[Termination "noamapplesauce won by resignation"]

1. e4 {[%clk 0:03:00.9]} 1... e5 {[%clk 0:02:59.3]} 2. Nf3 {[%clk 0:03:01.3]}
2... Nc6 {[%clk 0:02:58.6]} 3. Bc4 {[%clk 0:03:01.8]} 3... Bc5 {[%clk
0:02:58.4]} 4. c3 {[%clk 0:03:01.5]} 4... Nf6 {[%clk 0:02:58.2]} 5. d3 {[%clk
0:02:58]} 5... a6 {[%clk 0:02:57.7]} 6. O-O {[%clk 0:02:55.8]} 6... Ba7 {[%clk
0:02:57.5]} 7. b4 {[%clk 0:02:53.3]} 7... d6 {[%clk 0:02:55.8]} 8. Nbd2 {[%clk
0:02:48.3]} 8... O-O {[%clk 0:02:52.5]} 9. a4 {[%clk 0:02:45.8]} 9... Ne7 {[%clk
0:02:45.4]} 10. d4 {[%clk 0:02:42.2]} 10... Ng6 {[%clk 0:02:44]} 11. Re1 {[%clk
0:02:31]} 11... Nh5 {[%clk 0:01:52.4]} 12. Nf1 {[%clk 0:02:23.7]} 12... Nhf4
{[%clk 0:01:51]} 13. Ng3 {[%clk 0:02:12.9]} 13... h6 {[%clk 0:01:29.9]} 14. Be3
{[%clk 0:02:07]} 14... Qf6 {[%clk 0:01:28.2]} 15. Bf1 {[%clk 0:01:20.4]} 15...
Bg4 {[%clk 0:01:26.3]} 16. d5 {[%clk 0:00:55.8]} 16... Nh4 {[%clk 0:01:05.6]}
17. Bxa7 {[%clk 0:00:31.6]} 17... Bxf3 {[%clk 0:00:57.2]} 18. gxf3 {[%clk
0:00:26.5]} 18... Rxa7 {[%clk 0:00:56.9]} 19. Re3 {[%clk 0:00:16.7]} 19... Qg5
{[%clk 0:00:42]} 20. Kh1 {[%clk 0:00:16.5]} 20... g6 {[%clk 0:00:41.9]} 21. c4
{[%clk 0:00:15.2]} 21... f5 {[%clk 0:00:36.9]} 22. Be2 {[%clk 0:00:14.7]} 22...
Nxe2 {[%clk 0:00:20.4]} 23. Qxe2 {[%clk 0:00:14.3]} 23... f4 {[%clk 0:00:20.5]}
24. Rg1 {[%clk 0:00:12.4]} 24... fxe3 {[%clk 0:00:20.1]} 25. Nf5 {[%clk
0:00:12.6]} 25... Qh5 {[%clk 0:00:13.9]} 26. Nxh4 {[%clk 0:00:12.4]} 26... Qxh4
{[%clk 0:00:13.1]} 27. Qxe3 {[%clk 0:00:11.6]} 27... Kh7 {[%clk 0:00:12.5]} 28.
f4 {[%clk 0:00:10.8]} 28... Raa8 {[%clk 0:00:12.2]} 29. f5 {[%clk 0:00:10.4]}
29... gxf5 {[%clk 0:00:10.4]} 30. f3 {[%clk 0:00:09.5]} 30... f4 {[%clk
0:00:10.1]} 31. Qe2 {[%clk 0:00:09.2]} 31... Rg8 {[%clk 0:00:10.1]} 32. c5
{[%clk 0:00:09.4]} 32... Rxg1+ {[%clk 0:00:09.8]} 33. Kxg1 {[%clk 0:00:10.3]}
33... Rg8+ {[%clk 0:00:10]} 34. Kh1 {[%clk 0:00:11.2]} 34... Qh3 {[%clk
0:00:09.2]} 35. c6 {[%clk 0:00:10.1]} 35... bxc6 {[%clk 0:00:08.5]} 36. dxc6
{[%clk 0:00:11]} 36... Rg3 {[%clk 0:00:08.4]} 37. b5 {[%clk 0:00:10.8]} 37...
axb5 {[%clk 0:00:07.2]} 38. axb5 {[%clk 0:00:10.6]} 38... Rxf3 {[%clk
0:00:07.8]} 39. Kg1 {[%clk 0:00:08.2]} 39... Re3 {[%clk 0:00:08.1]} 40. Qa2
{[%clk 0:00:06.4]} 40... Re1+ {[%clk 0:00:07.5]} 41. Kf2 {[%clk 0:00:06]} 41...
Rf1+ {[%clk 0:00:06.8]} 42. Ke2 {[%clk 0:00:05.2]} 42... Qg2+ {[%clk 0:00:07.4]}
43. Kd3 {[%clk 0:00:05.3]} 43... Rf3+ {[%clk 0:00:07.6]} 44. Kc4 {[%clk
0:00:05.3]} 44... Qxa2+ {[%clk 0:00:08.5]} 45. Kb4 {[%clk 0:00:05.5]} 45... Rb3+
{[%clk 0:00:08.5]} 0-1

[Event "*** Titled Tuesday Blitz"]
[Site "Chess.com"]
[Date "2021.02.16"]
[Round "4"]
[White "QuintilianoR"]
[Black "ural58"]
[Result "0-1"]
[WhiteElo "2701"]
[BlackElo "2528"]
[TimeControl "180+1"]
[EndTime "10:42:20 PST"]
[Termination "ural58 won on time"]

1. Nf3 {[%clk 0:03:00.9]} 1... d5 {[%clk 0:02:52.3]} 2. e3 {[%clk 0:02:59.7]}
2... Nf6 {[%clk 0:02:49]} 3. c4 {[%clk 0:02:59.2]} 3... dxc4 {[%clk 0:02:42.7]}
4. Bxc4 {[%clk 0:02:58.5]} 4... Nc6 {[%clk 0:02:38.6]} 5. d4 {[%clk 0:02:55.8]}
5... e6 {[%clk 0:02:08]} 6. O-O {[%clk 0:02:54.7]} 6... Bd6 {[%clk 0:02:07.9]}
7. Nc3 {[%clk 0:02:54.9]} 7... O-O {[%clk 0:02:07.1]} 8. e4 {[%clk 0:02:40.2]}
8... e5 {[%clk 0:02:07.2]} 9. d5 {[%clk 0:02:37.3]} 9... Ne7 {[%clk 0:02:05.9]}
10. h3 {[%clk 0:02:32.7]} 10... a6 {[%clk 0:02:05.5]} 11. a4 {[%clk 0:02:31.1]}
11... Ng6 {[%clk 0:02:05.3]} 12. Re1 {[%clk 0:02:31]} 12... Bd7 {[%clk
0:02:01.6]} 13. Bg5 {[%clk 0:02:25.2]} 13... h6 {[%clk 0:02:01.1]} 14. Be3
{[%clk 0:02:25.3]} 14... Qe7 {[%clk 0:02:01]} 15. Bf1 {[%clk 0:02:22]} 15...
Rfd8 {[%clk 0:01:58.2]} 16. Qb3 {[%clk 0:02:21.1]} 16... Rab8 {[%clk 0:01:57.3]}
17. g3 {[%clk 0:02:04.2]} 17... c6 {[%clk 0:01:54.1]} 18. dxc6 {[%clk
0:02:02.2]} 18... bxc6 {[%clk 0:01:52.1]} 19. Qc2 {[%clk 0:02:00.4]} 19... a5
{[%clk 0:01:50.9]} 20. Nd2 {[%clk 0:01:58.3]} 20... Bb4 {[%clk 0:01:48.4]} 21.
Nc4 {[%clk 0:01:55.3]} 21... Be6 {[%clk 0:01:46.7]} 22. Rad1 {[%clk 0:01:52.2]}
22... Bc5 {[%clk 0:01:33.9]} 23. Rxd8+ {[%clk 0:01:43.6]} 23... Rxd8 {[%clk
0:01:31.4]} 24. Nxa5 {[%clk 0:01:40.5]} 24... Rc8 {[%clk 0:00:41.9]} 25. Nc4
{[%clk 0:01:34]} 25... Qa7 {[%clk 0:00:33.2]} 26. Bxc5 {[%clk 0:00:30.9]} 26...
Qxc5 {[%clk 0:00:32.5]} 27. Ne3 {[%clk 0:00:30.8]} 27... Qb4 {[%clk 0:00:29]}
28. Nf5 {[%clk 0:00:24.9]} 28... Kh7 {[%clk 0:00:18.8]} 29. Rb1 {[%clk
0:00:12.1]} 29... Rb8 {[%clk 0:00:18.8]} 30. Bg2 {[%clk 0:00:11.8]} 30... Ra8
{[%clk 0:00:15.9]} 31. Ne3 {[%clk 0:00:10.8]} 31... Nd7 {[%clk 0:00:14.1]} 32.
Qd2 {[%clk 0:00:08.9]} 32... Nc5 {[%clk 0:00:13.6]} 33. Qd6 {[%clk 0:00:08.6]}
33... Qb6 {[%clk 0:00:12.4]} 34. Nc4 {[%clk 0:00:05.6]} 34... Qa7 {[%clk
0:00:12]} 35. Nxe5 {[%clk 0:00:05.2]} 35... Nb7 {[%clk 0:00:08.7]} 36. Qc7
{[%clk 0:00:04.6]} 36... Nxe5 {[%clk 0:00:06.5]} 37. Qxe5 {[%clk 0:00:04.8]}
37... Nc5 {[%clk 0:00:05.7]} 38. Qd4 {[%clk 0:00:04]} 38... Qb6 {[%clk
0:00:04.6]} 0-1

[Event "*** Titled Tuesday Blitz"]
[Site "Chess.com"]
[Date "2021.02.16"]
[Round "4"]
[White "1977Ivan"]
[Black "hansen"]
[Result "0-1"]
[WhiteElo "2737"]
[BlackElo "2933"]
[TimeControl "180+1"]
[EndTime "10:42:21 PST"]
[Termination "hansen won on time"]

1. c4 {[%clk 0:03:00.9]} 1... e5 {[%clk 0:02:54.1]} 2. Nc3 {[%clk 0:03:00.4]}
2... Nf6 {[%clk 0:02:51.9]} 3. e3 {[%clk 0:03:00.3]} 3... Bb4 {[%clk 0:02:51.3]}
4. Nge2 {[%clk 0:02:59.8]} 4... O-O {[%clk 0:02:51.3]} 5. Ng3 {[%clk 0:02:59]}
5... c6 {[%clk 0:02:45.2]} 6. a3 {[%clk 0:02:43]} 6... Ba5 {[%clk 0:02:36.3]} 7.
b4 {[%clk 0:02:40.7]} 7... Bc7 {[%clk 0:02:29.3]} 8. Bb2 {[%clk 0:02:40.1]} 8...
Re8 {[%clk 0:02:18.2]} 9. Be2 {[%clk 0:02:39]} 9... d5 {[%clk 0:02:11.8]} 10.
cxd5 {[%clk 0:02:38.6]} 10... cxd5 {[%clk 0:02:12.1]} 11. Nb5 {[%clk 0:02:38.1]}
11... Bb6 {[%clk 0:02:12.5]} 12. Rc1 {[%clk 0:02:35.9]} 12... Nc6 {[%clk
0:02:11.4]} 13. d4 {[%clk 0:02:31.5]} 13... e4 {[%clk 0:01:53.3]} 14. Nc3 {[%clk
0:02:26.8]} 14... Ne7 {[%clk 0:01:51]} 15. Na4 {[%clk 0:02:25.8]} 15... Bc7
{[%clk 0:01:51.1]} 16. Nc5 {[%clk 0:02:23.9]} 16... Bd6 {[%clk 0:01:48]} 17. O-O
{[%clk 0:02:08.3]} 17... b6 {[%clk 0:01:43.1]} 18. Na6 {[%clk 0:02:07.5]} 18...
Nf5 {[%clk 0:01:42.7]} 19. Qc2 {[%clk 0:01:53.4]} 19... Nxg3 {[%clk 0:01:36.7]}
20. hxg3 {[%clk 0:01:48.2]} 20... Bg4 {[%clk 0:01:35.5]} 21. Bb5 {[%clk
0:01:38.3]} 21... Bd7 {[%clk 0:01:23.2]} 22. a4 {[%clk 0:01:30.9]} 22... Bxb5
{[%clk 0:01:19.2]} 23. axb5 {[%clk 0:01:30]} 23... Ng4 {[%clk 0:01:19.9]} 24.
Qc6 {[%clk 0:01:20.9]} 24... Qf6 {[%clk 0:01:07.1]} 25. Nc7 {[%clk 0:00:41]}
25... Qh6 {[%clk 0:01:06]} 26. Rfd1 {[%clk 0:00:40.8]} 26... Qh2+ {[%clk
0:00:45.6]} 27. Kf1 {[%clk 0:00:40.6]} 27... Bxc7 {[%clk 0:00:45.1]} 28. Qxc7
{[%clk 0:00:37.2]} 28... Qh1+ {[%clk 0:00:43.8]} 29. Ke2 {[%clk 0:00:37.2]}
29... Qxg2 {[%clk 0:00:44.1]} 30. Qf4 {[%clk 0:00:34.9]} 30... Nh2 {[%clk
0:00:26.1]} 31. Rc7 {[%clk 0:00:32.8]} 31... Qf3+ {[%clk 0:00:21.1]} 32. Qxf3
{[%clk 0:00:27.6]} 32... exf3+ {[%clk 0:00:21.4]} 33. Kd3 {[%clk 0:00:27.1]}
33... Ng4 {[%clk 0:00:21]} 34. Rd2 {[%clk 0:00:22.8]} 34... h5 {[%clk
0:00:14.7]} 35. Bc3 {[%clk 0:00:21.9]} 35... a6 {[%clk 0:00:09.9]} 36. bxa6
{[%clk 0:00:17.5]} 36... Rxa6 {[%clk 0:00:10.8]} 37. Bb2 {[%clk 0:00:14.3]}
37... Ra4 {[%clk 0:00:09.5]} 38. Bc3 {[%clk 0:00:08.2]} 38... Ra3 {[%clk
0:00:09.4]} 39. Rc2 {[%clk 0:00:08.5]} 39... Nf6 {[%clk 0:00:09]} 40. Kd2 {[%clk
0:00:02.8]} 40... Ne4+ {[%clk 0:00:09.1]} 41. Kc1 {[%clk 0:00:03.4]} 41... Rb3
{[%clk 0:00:06.6]} 42. Be1 {[%clk 0:00:02.6]} 42... Ra8 {[%clk 0:00:06.4]} 0-1

[Event "*** Titled Tuesday Blitz"]
[Site "Chess.com"]
[Date "2021.02.16"]
[Round "4"]
[White "elohunter1999"]
[Black "Gerodot71"]
[Result "0-1"]
[WhiteElo "2620"]
[BlackElo "2482"]
[TimeControl "180+1"]
[EndTime "10:42:21 PST"]
[Termination "Gerodot71 won on time"]

1. d4 {[%clk 0:02:35.3]} 1... Nf6 {[%clk 0:02:59.7]} 2. c4 {[%clk 0:02:34.9]}
2... e6 {[%clk 0:02:59.8]} 3. Nc3 {[%clk 0:02:33.5]} 3... Bb4 {[%clk 0:02:59.8]}
4. Nf3 {[%clk 0:02:33.5]} 4... d5 {[%clk 0:02:58.8]} 5. Bg5 {[%clk 0:02:31.5]}
5... h6 {[%clk 0:02:58.3]} 6. Bxf6 {[%clk 0:02:30.9]} 6... Qxf6 {[%clk
0:02:59.2]} 7. e3 {[%clk 0:02:31]} 7... O-O {[%clk 0:02:57.5]} 8. Rc1 {[%clk
0:02:30.4]} 8... dxc4 {[%clk 0:02:49.9]} 9. Bxc4 {[%clk 0:02:30]} 9... c5 {[%clk
0:02:50.3]} 10. O-O {[%clk 0:02:29.7]} 10... cxd4 {[%clk 0:02:49.9]} 11. Ne4
{[%clk 0:02:29.4]} 11... Qe7 {[%clk 0:02:43.6]} 12. a3 {[%clk 0:02:28.5]} 12...
Ba5 {[%clk 0:02:41.2]} 13. Qxd4 {[%clk 0:02:28.1]} 13... Nc6 {[%clk 0:02:40.1]}
14. Qc5 {[%clk 0:02:09.1]} 14... Qxc5 {[%clk 0:02:03.6]} 15. Nxc5 {[%clk
0:02:10]} 15... Bb6 {[%clk 0:02:03.8]} 16. Bb5 {[%clk 0:01:21.4]} 16... Ne7
{[%clk 0:01:31.2]} 17. Ne5 {[%clk 0:01:19.2]} 17... Bc7 {[%clk 0:01:18.7]} 18.
Ned7 {[%clk 0:00:59.7]} 18... Bxd7 {[%clk 0:00:56.5]} 19. Bxd7 {[%clk
0:00:59.3]} 19... Be5 {[%clk 0:00:50.9]} 20. b4 {[%clk 0:00:53.1]} 20... Bb2
{[%clk 0:00:47.6]} 21. Rc2 {[%clk 0:00:49.6]} 21... Bxa3 {[%clk 0:00:47.1]} 22.
Rb1 {[%clk 0:00:39.5]} 22... Rfd8 {[%clk 0:00:33.6]} 23. Rb3 {[%clk 0:00:25.6]}
23... b6 {[%clk 0:00:30.3]} 24. Nxe6 {[%clk 0:00:21.9]} 24... Rxd7 {[%clk
0:00:26.5]} 25. Nd4 {[%clk 0:00:21.6]} 25... Bxb4 {[%clk 0:00:18.7]} 26. Rxb4
{[%clk 0:00:21.6]} 26... Nf5 {[%clk 0:00:18.9]} 27. g4 {[%clk 0:00:15.9]} 27...
Nxd4 {[%clk 0:00:18.9]} 28. exd4 {[%clk 0:00:16.1]} 28... Rad8 {[%clk
0:00:19.2]} 29. Rd2 {[%clk 0:00:15.5]} 29... Rd5 {[%clk 0:00:17.3]} 30. h3
{[%clk 0:00:14.6]} 30... R8d7 {[%clk 0:00:17.2]} 31. Kg2 {[%clk 0:00:14.7]}
31... g5 {[%clk 0:00:17.7]} 32. Rc4 {[%clk 0:00:14.5]} 32... Kg7 {[%clk
0:00:17.8]} 33. Kf3 {[%clk 0:00:14.9]} 33... b5 {[%clk 0:00:18.2]} 34. Rb4
{[%clk 0:00:08.1]} 34... a5 {[%clk 0:00:17.7]} 35. Rb1 {[%clk 0:00:08.8]} 35...
b4 {[%clk 0:00:18.1]} 36. Ke3 {[%clk 0:00:09.4]} 36... Kf6 {[%clk 0:00:17.9]}
37. Ra1 {[%clk 0:00:02.9]} 37... Ke6 {[%clk 0:00:17.3]} 38. Ke4 {[%clk
0:00:02.5]} 38... Ke7 {[%clk 0:00:15.8]} 39. Ke3 {[%clk 0:00:02.7]} 39... Kd8
{[%clk 0:00:16]} 40. Rda2 {[%clk 0:00:02.9]} 40... Ra7 {[%clk 0:00:13.5]} 41.
Rc1 {[%clk 0:00:01.8]} 41... b3 {[%clk 0:00:13.3]} 42. Ra3 {[%clk 0:00:01.5]}
42... Rb5 {[%clk 0:00:12.3]} 0-1

[Event "*** Titled Tuesday Blitz"]
[Site "Chess.com"]
[Date "2021.02.16"]
[Round "4"]
[White "c_r_e_e_p_e_r"]
[Black "mr65"]
[Result "0-1"]
[WhiteElo "2381"]
[BlackElo "2135"]
[TimeControl "180+1"]
[EndTime "10:42:21 PST"]
[Termination "mr65 won on time"]

1. e4 {[%clk 0:03:00.9]} 1... e5 {[%clk 0:02:59]} 2. Nc3 {[%clk 0:03:00.9]} 2...
Nf6 {[%clk 0:02:58.4]} 3. f4 {[%clk 0:03:01.2]} 3... d5 {[%clk 0:02:58]} 4. fxe5
{[%clk 0:03:01.4]} 4... Nxe4 {[%clk 0:02:58]} 5. d3 {[%clk 0:03:01.4]} 5... Nxc3
{[%clk 0:02:57]} 6. bxc3 {[%clk 0:03:01.2]} 6... Be7 {[%clk 0:02:49.4]} 7. d4
{[%clk 0:02:57.9]} 7... O-O {[%clk 0:02:48]} 8. Bd3 {[%clk 0:02:57]} 8... f5
{[%clk 0:02:46.8]} 9. Nf3 {[%clk 0:02:40.4]} 9... c5 {[%clk 0:02:44.9]} 10. O-O
{[%clk 0:02:39.9]} 10... Nc6 {[%clk 0:02:44.3]} 11. Kh1 {[%clk 0:02:27.7]} 11...
g6 {[%clk 0:02:41.9]} 12. Bh6 {[%clk 0:02:23.4]} 12... Re8 {[%clk 0:02:37.8]}
13. Qd2 {[%clk 0:02:22.1]} 13... c4 {[%clk 0:02:32.4]} 14. Be2 {[%clk
0:02:22.2]} 14... Bf8 {[%clk 0:02:28.4]} 15. Bxf8 {[%clk 0:02:13.5]} 15... Rxf8
{[%clk 0:02:27.7]} 16. Qh6 {[%clk 0:02:12.4]} 16... Qe7 {[%clk 0:02:26.1]} 17.
Ng5 {[%clk 0:02:10]} 17... Qg7 {[%clk 0:02:25.1]} 18. Qh4 {[%clk 0:01:54.4]}
18... h6 {[%clk 0:02:24]} 19. Nh3 {[%clk 0:01:52.4]} 19... g5 {[%clk 0:02:21]}
20. Qh5 {[%clk 0:01:46.4]} 20... Be6 {[%clk 0:02:11.5]} 21. Rab1 {[%clk
0:01:40.7]} 21... b6 {[%clk 0:02:07]} 22. Nf2 {[%clk 0:01:11.4]} 22... Kh7
{[%clk 0:01:50.7]} 23. Nd1 {[%clk 0:01:10.4]} 23... Qg6 {[%clk 0:01:43.5]} 24.
Qf3 {[%clk 0:01:00.1]} 24... f4 {[%clk 0:01:40.7]} 25. Rc1 {[%clk 0:00:49.5]}
25... g4 {[%clk 0:01:26.3]} 26. Qf2 {[%clk 0:00:48.8]} 26... g3 {[%clk
0:01:25.5]} 27. Qf3 {[%clk 0:00:35]} 27... gxh2 {[%clk 0:01:14.7]} 28. Nf2
{[%clk 0:00:29.4]} 28... Qg3 {[%clk 0:01:12.8]} 29. Ng4 {[%clk 0:00:24.6]} 29...
Bxg4 {[%clk 0:00:57.9]} 30. Qxg4 {[%clk 0:00:23.5]} 30... Rg8 {[%clk 0:00:46.5]}
31. Qf5+ {[%clk 0:00:15.3]} 31... Rg6 {[%clk 0:00:43.4]} 32. Bf3 {[%clk
0:00:13.3]} 32... Ne7 {[%clk 0:00:39.4]} 33. Qd7 {[%clk 0:00:06.7]} 33... Rg7
{[%clk 0:00:33.4]} 34. Bxd5 {[%clk 0:00:05.7]} 34... Nxd5 {[%clk 0:00:32.2]} 35.
Qxd5 {[%clk 0:00:06.6]} 35... Rag8 {[%clk 0:00:31.4]} 36. Qe4+ {[%clk
0:00:06.7]} 36... Kh8 {[%clk 0:00:30.1]} 37. e6 {[%clk 0:00:03.5]} 37... Rg6
{[%clk 0:00:13]} 38. Qe5+ {[%clk 0:00:03]} 38... Kh7 {[%clk 0:00:12.2]} 39. Qe4
{[%clk 0:00:02.8]} 39... Kh8 {[%clk 0:00:09.9]} 40. Rxf4 {[%clk 0:00:02.3]}
40... Rxe6 {[%clk 0:00:07.1]} 0-1

[Event "*** Titled Tuesday Blitz"]
[Site "Chess.com"]
[Date "2021.02.16"]
[Round "4"]
[White "KeithArkell"]
[Black "GMKrikor"]
[Result "0-1"]
[WhiteElo "2533"]
[BlackElo "2811"]
[TimeControl "180+1"]
[EndTime "10:42:22 PST"]
[Termination "GMKrikor won on time"]

1. d4 {[%clk 0:03:00.9]} 1... Nf6 {[%clk 0:02:57.6]} 2. Nf3 {[%clk 0:02:59.4]}
2... g6 {[%clk 0:02:56.9]} 3. c4 {[%clk 0:02:59]} 3... Bg7 {[%clk 0:02:53.7]} 4.
g3 {[%clk 0:02:58.8]} 4... d5 {[%clk 0:02:53.2]} 5. cxd5 {[%clk 0:02:58.1]} 5...
Nxd5 {[%clk 0:02:54.1]} 6. Nc3 {[%clk 0:02:58.3]} 6... Nb6 {[%clk 0:02:53.8]} 7.
Bg2 {[%clk 0:02:57.8]} 7... Nc6 {[%clk 0:02:49.5]} 8. e3 {[%clk 0:02:57.6]} 8...
O-O {[%clk 0:02:41.1]} 9. O-O {[%clk 0:02:56.9]} 9... Re8 {[%clk 0:02:41.6]} 10.
b3 {[%clk 0:02:56.5]} 10... e5 {[%clk 0:02:36.5]} 11. Nxe5 {[%clk 0:02:56.2]}
11... Nxe5 {[%clk 0:02:36.1]} 12. dxe5 {[%clk 0:02:56.3]} 12... Bxe5 {[%clk
0:02:27.1]} 13. Bb2 {[%clk 0:02:55.8]} 13... Qxd1 {[%clk 0:02:19.5]} 14. Rfxd1
{[%clk 0:02:54.3]} 14... c6 {[%clk 0:02:19]} 15. Rd2 {[%clk 0:02:50.6]} 15...
Bf5 {[%clk 0:01:56.9]} 16. Ne2 {[%clk 0:02:47.7]} 16... Bxb2 {[%clk 0:01:54.8]}
17. Rxb2 {[%clk 0:02:48.4]} 17... Rad8 {[%clk 0:01:55.4]} 18. Nd4 {[%clk
0:02:45]} 18... Be4 {[%clk 0:01:38.5]} 19. Rc1 {[%clk 0:02:36.2]} 19... Bxg2
{[%clk 0:01:37.4]} 20. Kxg2 {[%clk 0:02:34.2]} 20... Re5 {[%clk 0:01:25.3]} 21.
Rbc2 {[%clk 0:02:24.4]} 21... Kf8 {[%clk 0:01:09.5]} 22. g4 {[%clk 0:02:11.5]}
22... h5 {[%clk 0:01:06.1]} 23. h3 {[%clk 0:02:10.9]} 23... hxg4 {[%clk
0:01:04.5]} 24. hxg4 {[%clk 0:02:11.8]} 24... Rg5 {[%clk 0:00:53.8]} 25. Kf3
{[%clk 0:02:10.3]} 25... Nd7 {[%clk 0:00:53.6]} 26. Kf4 {[%clk 0:02:06.6]} 26...
Ra5 {[%clk 0:00:41.2]} 27. a4 {[%clk 0:01:41.1]} 27... Rd5 {[%clk 0:00:37.7]}
28. b4 {[%clk 0:01:24.7]} 28... Ne5 {[%clk 0:00:32.3]} 29. Kg3 {[%clk
0:01:17.3]} 29... Nd3 {[%clk 0:00:20.5]} 30. Rb1 {[%clk 0:01:16.2]} 30... a6
{[%clk 0:00:20.1]} 31. Rc3 {[%clk 0:01:04.5]} 31... Ne5 {[%clk 0:00:17.9]} 32.
f4 {[%clk 0:00:34.2]} 32... Nd7 {[%clk 0:00:18]} 33. g5 {[%clk 0:00:32.4]} 33...
Kg7 {[%clk 0:00:15.8]} 34. Rh1 {[%clk 0:00:21.6]} 34... a5 {[%clk 0:00:15.4]}
35. bxa5 {[%clk 0:00:20.7]} 35... Nc5 {[%clk 0:00:14.7]} 36. Rc4 {[%clk
0:00:17.1]} 36... Ne4+ {[%clk 0:00:13.7]} 37. Kg2 {[%clk 0:00:15.6]} 37... Nd6
{[%clk 0:00:11.2]} 38. Rb4 {[%clk 0:00:15.3]} 38... c5 {[%clk 0:00:10.3]} 39.
Rb6 {[%clk 0:00:05.6]} 39... cxd4 {[%clk 0:00:09.6]} 40. exd4 {[%clk 0:00:06]}
40... Rxa5 {[%clk 0:00:07.1]} 0-1